[Event "Late-Titled-Tuesday-Blitz-May-07-2024"]
[Site "Chess.com"]
[Date "2024.05.07"]
[Round "1"]
[White "XDPS"]
[Black "Licancabur"]
[Result "1-0"]
[WhiteElo "2827"]
[BlackElo "2483"]
[TimeControl "180+1"]
[EndTime "14:06:31 PDT"]
[Termination "XDPS won on time"]

1. d4 {[%clk 0:02:57.9]} 1... d5 {[%clk 0:02:59.5]} 2. Bf4 {[%clk 0:02:57.6]}
2... Nf6 {[%clk 0:02:58.3]} 3. e3 {[%clk 0:02:57.4]} 3... c5 {[%clk 0:02:58]} 4.
Nf3 {[%clk 0:02:56.8]} 4... Nc6 {[%clk 0:02:58.4]} 5. Nbd2 {[%clk 0:02:57.2]}
5... Qb6 {[%clk 0:02:52.7]} 6. dxc5 {[%clk 0:02:57.2]} 6... Qxb2 {[%clk
0:02:50]} 7. Rb1 {[%clk 0:02:55.7]} 7... Qc3 {[%clk 0:02:48.3]} 8. Bb5 {[%clk
0:02:56.3]} 8... e6 {[%clk 0:02:47.5]} 9. Ne5 {[%clk 0:02:54]} 9... Bd7 {[%clk
0:02:37.3]} 10. Nxd7 {[%clk 0:02:44.5]} 10... Nxd7 {[%clk 0:02:34.3]} 11. O-O
{[%clk 0:02:45.1]} 11... Bxc5 {[%clk 0:02:16.9]} 12. e4 {[%clk 0:02:41.2]} 12...
O-O {[%clk 0:02:01.1]} 13. exd5 {[%clk 0:02:41]} 13... exd5 {[%clk 0:01:59.9]}
14. Nb3 {[%clk 0:02:38.8]} 14... Qf6 {[%clk 0:01:27.8]} 15. Bg3 {[%clk 0:02:29]}
15... Bd6 {[%clk 0:01:20.2]} 16. Qxd5 {[%clk 0:02:28.5]} 16... Bxg3 {[%clk
0:01:14.3]} 17. Qxd7 {[%clk 0:02:03.9]} 17... Bd6 {[%clk 0:01:04.3]} 18. Bxc6
{[%clk 0:01:56.7]} 18... bxc6 {[%clk 0:01:03.7]} 19. g3 {[%clk 0:01:57.1]} 19...
Bb4 {[%clk 0:00:39.5]} 20. Nc1 {[%clk 0:01:42.8]} 20... Bc5 {[%clk 0:00:31.5]}
21. Nd3 {[%clk 0:01:42.3]} 21... Bd4 {[%clk 0:00:31.6]} 22. Rb7 {[%clk
0:01:36.7]} 22... Rfd8 {[%clk 0:00:28]} 23. Qg4 {[%clk 0:01:36.1]} 23... Rab8
{[%clk 0:00:23.8]} 24. Rfb1 {[%clk 0:01:25.4]} 24... Bb6 {[%clk 0:00:20.2]} 25.
Rxb8 {[%clk 0:01:23.6]} 25... Rxb8 {[%clk 0:00:20.2]} 26. Re1 {[%clk 0:01:23.8]}
26... h6 {[%clk 0:00:18.4]} 27. Kg2 {[%clk 0:01:23]} 27... Rd8 {[%clk
0:00:18.7]} 28. Re4 {[%clk 0:01:21.5]} 28... Qd6 {[%clk 0:00:17.5]} 29. a4
{[%clk 0:01:17]} 29... Qd5 {[%clk 0:00:17.4]} 30. Qf3 {[%clk 0:01:16.2]} 30...
f5 {[%clk 0:00:16]} 31. Rf4 {[%clk 0:01:12.2]} 31... Qxf3+ {[%clk 0:00:15.7]}
32. Kxf3 {[%clk 0:01:13.1]} 32... Rd5 {[%clk 0:00:14.5]} 33. Rc4 {[%clk
0:01:12.3]} 33... Rd4 {[%clk 0:00:11.3]} 34. Rxd4 {[%clk 0:01:07.4]} 34... Bxd4
{[%clk 0:00:10.9]} 35. Nb4 {[%clk 0:01:08]} 35... c5 {[%clk 0:00:08.4]} 36. Nc6
{[%clk 0:01:08.3]} 36... Be5 {[%clk 0:00:05.5]} 37. Nxe5 {[%clk 0:01:08.4]} 1-0

[Event "Late-Titled-Tuesday-Blitz-May-07-2024"]
[Site "Chess.com"]
[Date "2024.05.07"]
[Round "1"]
[White "Nicolik"]
[Black "GMG"]
[Result "1-0"]
[WhiteElo "2497"]
[BlackElo "2808"]
[TimeControl "180+1"]
[EndTime "14:06:33 PDT"]
[Termination "Nicolik won on time"]

1. d4 {[%clk 0:02:59.6]} 1... f5 {[%clk 0:02:58.9]} 2. Nc3 {[%clk 0:02:58.3]}
2... Nf6 {[%clk 0:02:59]} 3. Bg5 {[%clk 0:02:57.6]} 3... d5 {[%clk 0:02:59.5]}
4. Bxf6 {[%clk 0:02:57.7]} 4... exf6 {[%clk 0:03:00.4]} 5. e3 {[%clk 0:02:57.4]}
5... Be6 {[%clk 0:03:01]} 6. h4 {[%clk 0:02:57.7]} 6... h5 {[%clk 0:03:00.3]} 7.
Qf3 {[%clk 0:02:56.5]} 7... Qd7 {[%clk 0:02:57.3]} 8. Nge2 {[%clk 0:02:56.6]}
8... Bf7 {[%clk 0:02:54.1]} 9. Nf4 {[%clk 0:02:55.8]} 9... c6 {[%clk 0:02:53.4]}
10. Bd3 {[%clk 0:02:56]} 10... g6 {[%clk 0:02:53.3]} 11. O-O-O {[%clk 0:02:47]}
11... Bd6 {[%clk 0:02:42.9]} 12. g3 {[%clk 0:02:41.5]} 12... Qe7 {[%clk
0:02:40.2]} 13. Rhe1 {[%clk 0:02:40.1]} 13... O-O {[%clk 0:02:35.5]} 14. Nxh5
{[%clk 0:02:10.8]} 14... gxh5 {[%clk 0:02:32.8]} 15. Qxf5 {[%clk 0:02:11.2]}
15... Be6 {[%clk 0:02:32.2]} 16. Qxh5 {[%clk 0:02:09.6]} 16... f5 {[%clk
0:02:26.4]} 17. e4 {[%clk 0:02:08.2]} 17... fxe4 {[%clk 0:02:09.3]} 18. Qg6+
{[%clk 0:01:45.5]} 18... Kh8 {[%clk 0:02:06.8]} 19. Nxe4 {[%clk 0:01:33.5]}
19... dxe4 {[%clk 0:02:01.4]} 20. Rxe4 {[%clk 0:01:29.9]} 20... Rf6 {[%clk
0:01:54.2]} 21. Qh5+ {[%clk 0:01:24.2]} 21... Kg8 {[%clk 0:01:48]} 22. Rde1
{[%clk 0:01:14.9]} 22... Qf7 {[%clk 0:01:22.7]} 23. Qg5+ {[%clk 0:01:04.1]}
23... Kf8 {[%clk 0:01:06.4]} 24. Bc4 {[%clk 0:00:57]} 24... Qg7 {[%clk
0:00:23.1]} 25. Rxe6 {[%clk 0:00:41.5]} 25... Nd7 {[%clk 0:00:12.1]} 26. Re8+
{[%clk 0:00:34.8]} 1-0

[Event "Late-Titled-Tuesday-Blitz-May-07-2024"]
[Site "Chess.com"]
[Date "2024.05.07"]
[Round "1"]
[White "PositionalPanther"]
[Black "MITerryble"]
[Result "0-1"]
[WhiteElo "2546"]
[BlackElo "3021"]
[TimeControl "180+1"]
[EndTime "14:06:36 PDT"]
[Termination "MITerryble won by resignation"]

1. Nf3 {[%clk 0:03:00.9]} 1... d5 {[%clk 0:03:00.1]} 2. g3 {[%clk 0:03:01.2]}
2... Nf6 {[%clk 0:03:00.6]} 3. Bg2 {[%clk 0:03:01.6]} 3... c6 {[%clk 0:03:01.2]}
4. O-O {[%clk 0:03:02]} 4... Bg4 {[%clk 0:03:01.8]} 5. h3 {[%clk 0:03:01.2]}
5... Bh5 {[%clk 0:03:01.6]} 6. c4 {[%clk 0:03:01.3]} 6... e6 {[%clk 0:03:01.7]}
7. d4 {[%clk 0:02:55.3]} 7... Nbd7 {[%clk 0:03:00.6]} 8. cxd5 {[%clk 0:02:50.4]}
8... exd5 {[%clk 0:03:00.3]} 9. Ne5 {[%clk 0:02:49.9]} 9... Bg6 {[%clk
0:02:48.5]} 10. Nc3 {[%clk 0:02:45.8]} 10... Nxe5 {[%clk 0:02:36.5]} 11. dxe5
{[%clk 0:02:46.7]} 11... Nd7 {[%clk 0:02:36.5]} 12. f4 {[%clk 0:02:47]} 12... f5
{[%clk 0:02:36.8]} 13. exf6 {[%clk 0:02:30.4]} 13... Nxf6 {[%clk 0:02:36]} 14.
f5 {[%clk 0:02:29]} 14... Bf7 {[%clk 0:02:36.2]} 15. e4 {[%clk 0:02:29.5]} 15...
Bc5+ {[%clk 0:02:34.5]} 16. Kh2 {[%clk 0:02:28.4]} 16... dxe4 {[%clk 0:02:35.1]}
17. Qc2 {[%clk 0:02:15.6]} 17... Qd3 {[%clk 0:02:32.2]} 18. Bxe4 {[%clk
0:02:01.7]} 18... Qxc2+ {[%clk 0:02:31.6]} 19. Bxc2 {[%clk 0:02:02.6]} 19...
O-O-O {[%clk 0:02:31.2]} 20. Bg5 {[%clk 0:01:55.5]} 20... Rhe8 {[%clk
0:02:30.6]} 21. Rad1 {[%clk 0:01:53.3]} 21... Bd4 {[%clk 0:02:29.3]} 22. Bb3
{[%clk 0:01:43.9]} 22... Bxb3 {[%clk 0:02:27]} 23. axb3 {[%clk 0:01:44.8]} 23...
Bxc3 {[%clk 0:02:24.9]} 24. bxc3 {[%clk 0:01:41.3]} 24... Re2+ {[%clk
0:02:23.3]} 25. Kg1 {[%clk 0:01:38.4]} 25... Rxd1 {[%clk 0:02:23.9]} 26. Rxd1
{[%clk 0:01:38.1]} 26... Ne4 {[%clk 0:02:24.8]} 27. Bf4 {[%clk 0:01:20.1]} 27...
Nxc3 {[%clk 0:02:24.5]} 28. Kf1 {[%clk 0:01:06]} 28... Re4 {[%clk 0:02:05.3]}
29. Re1 {[%clk 0:00:59.8]} 29... Kd7 {[%clk 0:01:54.3]} 30. Be5 {[%clk
0:00:58.6]} 30... Rxe1+ {[%clk 0:01:53.9]} 31. Kxe1 {[%clk 0:00:59.5]} 31... Ne4
{[%clk 0:01:54.8]} 32. Ke2 {[%clk 0:00:39]} 32... Ke7 {[%clk 0:01:50.7]} 33. Kd3
{[%clk 0:00:23.5]} 33... Nf6 {[%clk 0:01:49.5]} 34. g4 {[%clk 0:00:21.4]} 34...
Kf7 {[%clk 0:01:49.3]} 35. g5 {[%clk 0:00:18]} 35... Nd7 {[%clk 0:01:48.8]} 36.
Bd4 {[%clk 0:00:16.6]} 36... a6 {[%clk 0:01:46.5]} 37. Ke4 {[%clk 0:00:16.1]}
37... g6 {[%clk 0:01:46.3]} 38. h4 {[%clk 0:00:15.6]} 38... Ke7 {[%clk
0:01:44.7]} 39. Bb2 {[%clk 0:00:14.4]} 39... Nc5+ {[%clk 0:01:44.2]} 40. Ke5
{[%clk 0:00:14.5]} 40... Nxb3 {[%clk 0:01:44.6]} 41. Ba3+ {[%clk 0:00:14.7]}
41... Kf7 {[%clk 0:01:37.4]} 42. f6 {[%clk 0:00:15.1]} 42... Nd2 {[%clk
0:01:29.2]} 43. Kf4 {[%clk 0:00:09.4]} 43... b5 {[%clk 0:01:26]} 44. Bb4 {[%clk
0:00:09.2]} 44... Nc4 {[%clk 0:01:26.3]} 45. Ke4 {[%clk 0:00:08.4]} 45... a5
{[%clk 0:01:27.2]} 46. Bc5 {[%clk 0:00:08.8]} 46... a4 {[%clk 0:01:25.9]} 47.
Kd3 {[%clk 0:00:09.2]} 47... a3 {[%clk 0:01:26.5]} 48. Bd4 {[%clk 0:00:08.6]}
48... Nd6 {[%clk 0:01:25.8]} 49. Kc2 {[%clk 0:00:07.4]} 49... Ne4 {[%clk
0:01:21.3]} 50. Bf2 {[%clk 0:00:07.9]} 50... Nxf2 {[%clk 0:01:20.7]} 0-1

[Event "Late-Titled-Tuesday-Blitz-May-07-2024"]
[Site "Chess.com"]
[Date "2024.05.07"]
[Round "1"]
[White "LUISMIGUELOV"]
[Black "Russian_berezka"]
[Result "0-1"]
[WhiteElo "2202"]
[BlackElo "2599"]
[TimeControl "180+1"]
[EndTime "14:06:36 PDT"]
[Termination "Russian_berezka won by resignation"]

1. d4 {[%clk 0:03:00.9]} 1... g6 {[%clk 0:02:58.2]} 2. c3 {[%clk 0:03:00.2]}
2... Bg7 {[%clk 0:02:58.2]} 3. Bg5 {[%clk 0:03:00.7]} 3... d5 {[%clk 0:02:55.9]}
4. Nd2 {[%clk 0:03:00.8]} 4... Nf6 {[%clk 0:02:55.8]} 5. e3 {[%clk 0:03:00.2]}
5... O-O {[%clk 0:02:55.4]} 6. Bd3 {[%clk 0:03:00.1]} 6... c5 {[%clk 0:02:55.9]}
7. f4 {[%clk 0:02:58.7]} 7... Nc6 {[%clk 0:02:53]} 8. Ngf3 {[%clk 0:02:57.2]}
8... Bf5 {[%clk 0:02:49.5]} 9. Bxf5 {[%clk 0:02:55.4]} 9... gxf5 {[%clk
0:02:50.4]} 10. Bxf6 {[%clk 0:02:55.5]} 10... Bxf6 {[%clk 0:02:48.5]} 11. O-O
{[%clk 0:02:52.8]} 11... e6 {[%clk 0:02:48.1]} 12. Ne5 {[%clk 0:02:49.8]} 12...
Kh8 {[%clk 0:02:37.9]} 13. Qh5 {[%clk 0:02:49.2]} 13... Bxe5 {[%clk 0:02:30.8]}
14. fxe5 {[%clk 0:02:48.4]} 14... Qe7 {[%clk 0:02:28.7]} 15. Rf3 {[%clk
0:02:48]} 15... Rg8 {[%clk 0:02:29.1]} 16. Rh3 {[%clk 0:02:46.9]} 16... Rg7
{[%clk 0:02:29.7]} 17. Rf1 {[%clk 0:02:45.2]} 17... Rag8 {[%clk 0:02:27.9]} 18.
g3 {[%clk 0:02:38.4]} 18... f6 {[%clk 0:02:17.4]} 19. exf6 {[%clk 0:02:30.5]}
19... Qxf6 {[%clk 0:02:18.3]} 20. Rf4 {[%clk 0:02:29.9]} 20... Qf7 {[%clk
0:01:57]} 21. Qxf7 {[%clk 0:02:15.1]} 21... Rxf7 {[%clk 0:01:57.9]} 22. Nf3
{[%clk 0:02:14.9]} 22... c4 {[%clk 0:01:56.6]} 23. Kf2 {[%clk 0:02:00.4]} 23...
b5 {[%clk 0:01:55.9]} 24. a3 {[%clk 0:01:58.9]} 24... a5 {[%clk 0:01:55.7]} 25.
Rh5 {[%clk 0:01:52]} 25... Rg6 {[%clk 0:01:55.7]} 26. Rfh4 {[%clk 0:01:41.2]}
26... Rfg7 {[%clk 0:01:54.6]} 27. Ke2 {[%clk 0:01:31.6]} 27... Kg8 {[%clk
0:01:46.4]} 28. Rf4 {[%clk 0:01:26.6]} 28... b4 {[%clk 0:01:43.9]} 29. axb4
{[%clk 0:01:24.9]} 29... axb4 {[%clk 0:01:44.8]} 30. Nh4 {[%clk 0:01:21.6]}
30... Rf6 {[%clk 0:01:40.1]} 31. Ng2 {[%clk 0:01:17.1]} 31... b3 {[%clk
0:01:37.3]} 32. Rfh4 {[%clk 0:01:10.8]} 32... Ra7 {[%clk 0:01:36.1]} 33. Rh6
{[%clk 0:01:01.8]} 33... Rxh6 {[%clk 0:01:22.1]} 34. Rxh6 {[%clk 0:01:00]} 34...
Nd8 {[%clk 0:01:21.2]} 35. Nf4 {[%clk 0:00:57.2]} 35... Ra2 {[%clk 0:01:20.8]}
36. Nxe6 {[%clk 0:00:56]} 36... Rxb2+ {[%clk 0:01:21]} 37. Kd1 {[%clk
0:00:54.3]} 37... Nxe6 {[%clk 0:01:19.3]} 38. Rxe6 {[%clk 0:00:53.4]} 38... Rc2
{[%clk 0:01:20.2]} 39. Rd6 {[%clk 0:00:42.3]} 39... Rxc3 {[%clk 0:01:20.2]} 40.
Rxd5 {[%clk 0:00:42.3]} 40... Rd3+ {[%clk 0:01:17]} 41. Kc1 {[%clk 0:00:40.6]}
41... Rxe3 {[%clk 0:01:09.7]} 42. Rxf5 {[%clk 0:00:35.8]} 42... c3 {[%clk
0:01:08.2]} 43. Re5 {[%clk 0:00:32.7]} 43... Rxe5 {[%clk 0:01:01.3]} 44. dxe5
{[%clk 0:00:32.1]} 44... Kf7 {[%clk 0:01:01.9]} 45. g4 {[%clk 0:00:27.4]} 45...
Ke6 {[%clk 0:01:01.6]} 46. h4 {[%clk 0:00:27.9]} 46... Kxe5 {[%clk 0:01:01.9]}
47. g5 {[%clk 0:00:28.4]} 47... Kf5 {[%clk 0:01:02.3]} 48. Kb1 {[%clk
0:00:26.7]} 48... Kg6 {[%clk 0:01:02.3]} 49. Kc1 {[%clk 0:00:26.3]} 49... Kh5
{[%clk 0:01:03.2]} 0-1

[Event "Late-Titled-Tuesday-Blitz-May-07-2024"]
[Site "Chess.com"]
[Date "2024.05.07"]
[Round "1"]
[White "GMBenjaminBok"]
[Black "dealshark"]
[Result "1-0"]
[WhiteElo "3045"]
[BlackElo "2551"]
[TimeControl "180+1"]
[EndTime "14:06:38 PDT"]
[Termination "GMBenjaminBok won by resignation"]

1. d4 {[%clk 0:03:00.9]} 1... d5 {[%clk 0:02:55.7]} 2. c4 {[%clk 0:03:00.2]}
2... e6 {[%clk 0:02:56.1]} 3. Nc3 {[%clk 0:03:00.3]} 3... c5 {[%clk 0:02:55.4]}
4. cxd5 {[%clk 0:02:57.2]} 4... exd5 {[%clk 0:02:55.5]} 5. Nf3 {[%clk 0:02:57]}
5... Nc6 {[%clk 0:02:55.1]} 6. g3 {[%clk 0:02:57.4]} 6... Nf6 {[%clk 0:02:54.7]}
7. Bg2 {[%clk 0:02:57.9]} 7... Be7 {[%clk 0:02:54.8]} 8. O-O {[%clk 0:02:57.6]}
8... O-O {[%clk 0:02:54.8]} 9. b3 {[%clk 0:02:58.1]} 9... Bf5 {[%clk 0:02:48.2]}
10. Bb2 {[%clk 0:02:57]} 10... Rc8 {[%clk 0:02:46]} 11. dxc5 {[%clk 0:02:55]}
11... Bxc5 {[%clk 0:02:44.9]} 12. Rc1 {[%clk 0:02:55.7]} 12... Re8 {[%clk
0:02:30.6]} 13. e3 {[%clk 0:02:34.3]} 13... Bb6 {[%clk 0:02:06.6]} 14. Na4
{[%clk 0:02:15.2]} 14... Be4 {[%clk 0:01:55.6]} 15. Nxb6 {[%clk 0:02:13.1]}
15... axb6 {[%clk 0:01:51.4]} 16. Qd2 {[%clk 0:02:13.2]} 16... Qe7 {[%clk
0:01:46.6]} 17. Rfd1 {[%clk 0:02:12.3]} 17... h6 {[%clk 0:01:45]} 18. Nd4 {[%clk
0:01:58.1]} 18... Red8 {[%clk 0:01:40.4]} 19. Bh3 {[%clk 0:01:51.4]} 19... Ra8
{[%clk 0:01:28.9]} 20. a4 {[%clk 0:01:46.3]} 20... Ne5 {[%clk 0:01:22.8]} 21.
Qe2 {[%clk 0:01:45.4]} 21... Nfd7 {[%clk 0:01:14.3]} 22. Rc7 {[%clk 0:01:12]}
22... Qb4 {[%clk 0:01:13.9]} 23. Bc3 {[%clk 0:00:42.1]} 23... Qd6 {[%clk
0:01:08.6]} 24. Nb5 {[%clk 0:00:40.5]} 24... Qf8 {[%clk 0:01:00.2]} 25. Bg2
{[%clk 0:00:36.8]} 25... Bxg2 {[%clk 0:00:50.2]} 26. Kxg2 {[%clk 0:00:37.7]}
26... Rac8 {[%clk 0:00:45.9]} 27. Rxc8 {[%clk 0:00:34.5]} 27... Rxc8 {[%clk
0:00:46.1]} 28. Rxd5 {[%clk 0:00:35.1]} 28... Qe7 {[%clk 0:00:43.8]} 29. Qd1
{[%clk 0:00:31]} 29... Nc5 {[%clk 0:00:42.3]} 30. Rxe5 {[%clk 0:00:26.3]} 30...
Qf8 {[%clk 0:00:38.2]} 31. Qg4 {[%clk 0:00:24]} 31... Nxb3 {[%clk 0:00:34.7]}
32. Rd5 {[%clk 0:00:20.5]} 32... Nc5 {[%clk 0:00:31.6]} 33. Bxg7 {[%clk
0:00:20.2]} 33... Qe8 {[%clk 0:00:28.7]} 34. Bf6+ {[%clk 0:00:19.7]} 1-0

[Event "Late-Titled-Tuesday-Blitz-May-07-2024"]
[Site "Chess.com"]
[Date "2024.05.07"]
[Round "1"]
[White "NowInChess"]
[Black "Stanbad1"]
[Result "0-1"]
[WhiteElo "2263"]
[BlackElo "2621"]
[TimeControl "180+1"]
[EndTime "14:06:38 PDT"]
[Termination "Stanbad1 won on time"]

1. e4 {[%clk 0:03:00.9]} 1... e6 {[%clk 0:02:59.1]} 2. d3 {[%clk 0:03:00.8]}
2... d5 {[%clk 0:02:58.8]} 3. Nd2 {[%clk 0:03:01]} 3... c5 {[%clk 0:02:58.9]} 4.
g3 {[%clk 0:03:00.7]} 4... Nc6 {[%clk 0:02:59]} 5. Bg2 {[%clk 0:03:00.9]} 5...
g6 {[%clk 0:02:59.4]} 6. Ngf3 {[%clk 0:03:00.5]} 6... Bg7 {[%clk 0:02:59.6]} 7.
O-O {[%clk 0:02:59.2]} 7... Nge7 {[%clk 0:02:59.4]} 8. Re1 {[%clk 0:02:53.9]}
8... O-O {[%clk 0:02:59]} 9. exd5 {[%clk 0:02:34.6]} 9... exd5 {[%clk
0:02:50.5]} 10. d4 {[%clk 0:02:32.6]} 10... Nxd4 {[%clk 0:02:49.8]} 11. Nxd4
{[%clk 0:02:32.2]} 11... Bxd4 {[%clk 0:02:50.3]} 12. Nb3 {[%clk 0:02:27.1]}
12... Nc6 {[%clk 0:02:31.1]} 13. c3 {[%clk 0:02:24.9]} 13... Bg7 {[%clk
0:02:28]} 14. Bxd5 {[%clk 0:02:09.6]} 14... Ne5 {[%clk 0:01:58.9]} 15. Bg2
{[%clk 0:01:34.6]} 15... Qxd1 {[%clk 0:01:37.3]} 16. Rxd1 {[%clk 0:01:32.9]}
16... Bg4 {[%clk 0:01:38]} 17. Re1 {[%clk 0:01:13.8]} 17... Nf3+ {[%clk
0:01:29.8]} 18. Bxf3 {[%clk 0:01:13]} 18... Bxf3 {[%clk 0:01:30.7]} 19. Nxc5
{[%clk 0:01:05.1]} 19... b6 {[%clk 0:01:30.9]} 20. Nb3 {[%clk 0:01:02]} 20...
Rad8 {[%clk 0:01:28.6]} 21. Be3 {[%clk 0:00:59.5]} 21... Rfe8 {[%clk 0:01:24.5]}
22. Bd4 {[%clk 0:00:57.9]} 22... Bh6 {[%clk 0:01:21.8]} 23. Be3 {[%clk
0:00:42.7]} 23... Bg7 {[%clk 0:01:09.9]} 24. Bd4 {[%clk 0:00:41.1]} 24... Bh6
{[%clk 0:01:10.1]} 25. Be3 {[%clk 0:00:40.9]} 25... Bxe3 {[%clk 0:01:08.6]} 26.
Rxe3 {[%clk 0:00:35.7]} 26... Rxe3 {[%clk 0:01:07.5]} 27. fxe3 {[%clk
0:00:36.6]} 27... Rd3 {[%clk 0:01:07.6]} 28. Kf2 {[%clk 0:00:32.7]} 28... Bg4
{[%clk 0:01:07]} 29. Re1 {[%clk 0:00:27.6]} 29... a5 {[%clk 0:01:06.6]} 30. a4
{[%clk 0:00:19]} 30... Bd7 {[%clk 0:01:01.5]} 31. Ke2 {[%clk 0:00:12.7]} 31...
Rd5 {[%clk 0:00:56.7]} 32. Ra1 {[%clk 0:00:07]} 32... Bg4+ {[%clk 0:00:56]} 33.
Kf2 {[%clk 0:00:07.1]} 33... Rd3 {[%clk 0:00:55.8]} 34. Re1 {[%clk 0:00:04.9]}
34... Be6 {[%clk 0:00:55.8]} 35. Nd4 {[%clk 0:00:03.2]} 35... Bc4 {[%clk
0:00:55.8]} 36. Kf3 {[%clk 0:00:01.1]} 36... Rd2 {[%clk 0:00:54.6]} 37. h3
{[%clk 0:00:00.3]} 37... Rxb2 {[%clk 0:00:54.1]} 0-1

[Event "Late-Titled-Tuesday-Blitz-May-07-2024"]
[Site "Chess.com"]
[Date "2024.05.07"]
[Round "1"]
[White "zajka-molotok"]
[Black "Hikaru"]
[Result "0-1"]
[WhiteElo "2561"]
[BlackElo "3217"]
[TimeControl "180+1"]
[EndTime "14:06:42 PDT"]
[Termination "Hikaru won by resignation"]

1. d4 {[%clk 0:02:57.3]} 1... a6 {[%clk 0:03:00.9]} 2. e4 {[%clk 0:02:53.1]}
2... e6 {[%clk 0:03:01.2]} 3. Nf3 {[%clk 0:02:47.5]} 3... d5 {[%clk 0:03:01.5]}
4. e5 {[%clk 0:02:47.4]} 4... c5 {[%clk 0:03:01.3]} 5. c3 {[%clk 0:02:47.7]}
5... Bd7 {[%clk 0:03:01.6]} 6. Na3 {[%clk 0:02:39]} 6... Qb6 {[%clk 0:02:53.6]}
7. Nc2 {[%clk 0:02:38.2]} 7... cxd4 {[%clk 0:02:53]} 8. Ncxd4 {[%clk 0:02:36.9]}
8... Nc6 {[%clk 0:02:53]} 9. Be2 {[%clk 0:02:30.2]} 9... Nxd4 {[%clk 0:02:50.6]}
10. cxd4 {[%clk 0:02:18.8]} 10... Bb5 {[%clk 0:02:49.2]} 11. O-O {[%clk
0:02:17.9]} 11... Bxe2 {[%clk 0:02:49.3]} 12. Qxe2 {[%clk 0:02:18.8]} 12... Qb5
{[%clk 0:02:48.3]} 13. Qxb5+ {[%clk 0:02:14.3]} 13... axb5 {[%clk 0:02:49.2]}
14. Be3 {[%clk 0:02:07.7]} 14... Ne7 {[%clk 0:02:48.8]} 15. a3 {[%clk
0:02:06.5]} 15... Nc6 {[%clk 0:02:48.6]} 16. Rfc1 {[%clk 0:02:05]} 16... Be7
{[%clk 0:02:45]} 17. Nd2 {[%clk 0:02:00.9]} 17... Na5 {[%clk 0:02:42.6]} 18. Rc7
{[%clk 0:01:59.2]} 18... Kd8 {[%clk 0:02:37.9]} 19. Rac1 {[%clk 0:01:45.2]}
19... Rb8 {[%clk 0:02:37.5]} 20. R7c2 {[%clk 0:01:33.5]} 20... Nc4 {[%clk
0:02:32]} 21. Nxc4 {[%clk 0:01:18.5]} 21... bxc4 {[%clk 0:02:29.9]} 22. Rc3
{[%clk 0:00:59.2]} 22... b5 {[%clk 0:02:29.4]} 23. Ra1 {[%clk 0:00:56.2]} 23...
Ra8 {[%clk 0:02:27.1]} 24. Rcc1 {[%clk 0:00:55]} 24... Kd7 {[%clk 0:02:27.1]}
25. Bd2 {[%clk 0:00:54.9]} 25... f6 {[%clk 0:02:27.4]} 26. f4 {[%clk 0:00:53.3]}
26... Ra4 {[%clk 0:02:27.2]} 27. Bc3 {[%clk 0:00:52.3]} 27... Rha8 {[%clk
0:02:27]} 28. Rab1 {[%clk 0:00:51.9]} 28... Rb8 {[%clk 0:02:24.1]} 29. Ra1
{[%clk 0:00:48.9]} 29... f5 {[%clk 0:02:07.6]} 30. Kf2 {[%clk 0:00:48.1]} 30...
g5 {[%clk 0:02:07.8]} 31. fxg5 {[%clk 0:00:40.9]} 31... Bxg5 {[%clk 0:02:08]}
32. Rd1 {[%clk 0:00:40.4]} 32... Be7 {[%clk 0:02:08.1]} 33. Kf3 {[%clk
0:00:38.8]} 33... Rba8 {[%clk 0:02:07.9]} 34. Rab1 {[%clk 0:00:38]} 34... R4a6
{[%clk 0:02:03.4]} 35. g4 {[%clk 0:00:34.2]} 35... Rf8 {[%clk 0:02:00.7]} 36.
Rf1 {[%clk 0:00:31]} 36... Raa8 {[%clk 0:01:53.6]} 37. gxf5 {[%clk 0:00:28.6]}
37... Rxf5+ {[%clk 0:01:53.6]} 38. Ke2 {[%clk 0:00:29]} 38... Rh5 {[%clk
0:01:53]} 39. Rf2 {[%clk 0:00:28.9]} 39... Rf8 {[%clk 0:01:39.6]} 40. Rbf1
{[%clk 0:00:27.8]} 40... Rxf2+ {[%clk 0:01:39]} 41. Rxf2 {[%clk 0:00:28.7]}
41... Rh3 {[%clk 0:01:39.2]} 42. Kf1 {[%clk 0:00:25.4]} 42... Bxa3 {[%clk
0:01:35.9]} 43. Kg2 {[%clk 0:00:24.8]} 43... Rd3 {[%clk 0:01:35.6]} 44. Rf7+
{[%clk 0:00:22.4]} 44... Ke8 {[%clk 0:01:35.5]} 45. Rxh7 {[%clk 0:00:17.5]}
45... b4 {[%clk 0:01:14.9]} 46. Be1 {[%clk 0:00:16.4]} 46... b3 {[%clk
0:01:15.2]} 47. bxa3 {[%clk 0:00:14.2]} 47... b2 {[%clk 0:01:15.6]} 48. Rb7
{[%clk 0:00:13.9]} 48... Rb3 {[%clk 0:01:15.6]} 0-1